fUSD/lending_fUSD_20241106
["ID","MTS","AMOUNT","RATE_DAILY","PERIOD"]
[341451128,1730896239268,-500.0,0.00036593,7]
[341451129,1730896239278,-814.31,0.00036593,7]
[341451130,1730896239288,-500.0,0.00036593,7]
[341451131,1730896239298,-500.0,0.00036593,7]
[341451132,1730896239308,-1146.46,0.00036593,7]
[341451133,1730896239318,-500.0,0.00036593,7]
[341451134,1730896239327,-406.62042924,0.00036593,7]
[341451139,1730896240054,-1449.38,0.00036592,7]
[341451140,1730896240063,-93.37957076,0.00036593,7]
[341451141,1730896240073,-1107.4,0.00036593,7]
[341451142,1730896240082,-131.62623269,0.00036593,7]
[341451143,1730896240093,-773.93376731,0.00036593,7]
[341451144,1730896240102,-298.72903274,0.00036593,7]
[341451145,1730896243124,-518.85676756,0.00036573,2]
[341451146,1730896243133,-500.0,0.00036592,7]
[341451147,1730896243143,-51.54867244,0.00036593,7]
[341451148,1730896243237,-503.85229482,0.00036593,7]
[341451151,1730896243247,-1176.24,0.00036593,7]
[341451154,1730896243258,-500.0,0.00036593,7]
[341451156,1730896243268,-907.18,0.00036593,7]
[341451158,1730896243277,-2625.04,0.00036593,7]
[341451160,1730896243287,-500.0,0.00036593,7]
[341451162,1730896243295,-1838.78,0.00036593,7]
[341451164,1730896243305,-574.51,0.00036593,7]
[341451166,1730896243314,-500.0,0.00036593,7]
[341451168,1730896243323,-500.0,0.00036593,7]
[341451170,1730896243333,-733.65,0.00036593,7]
[341451172,1730896243342,-592.62799639,0.00036593,7]
[341451174,1730896243351,-248.83534855,0.00036593,7]
[341451184,1730896243413,-251.16465145,0.00036593,7]
[341451187,1730896243426,-1492.52,0.00036593,7]
[341451189,1730896243438,-891.83,0.00036593,7]
[341451191,1730896243447,-211.33847738,0.00036593,7]
[341451193,1730896243456,-1855.55,0.00036593,7]
[341451195,1730896243465,-500.0,0.00036594,7]
[341451196,1730896243474,-500.0,0.00036594,7]
[341451198,1730896243483,-500.0,0.00036594,7]
[341451200,1730896243492,-500.0,0.00036594,7]
[341451202,1730896243501,-500.0,0.00036594,7]
[341451204,1730896243510,-500.0,0.00036594,7]
[341451206,1730896243520,-500.0,0.00036594,7]
[341451208,1730896243529,-500.0,0.00036594,7]
[341451210,1730896243539,-500.0,0.00036594,7]
[341451212,1730896243548,-500.0,0.00036594,7]
[341451214,1730896243557,-500.0,0.00036594,7]
[341451216,1730896243567,-500.0,0.00036594,7]
[341451218,1730896243577,-500.0,0.00036594,7]
[341451220,1730896243585,-500.0,0.00036594,7]
[341451222,1730896243596,-500.0,0.00036594,7]
[341451224,1730896243605,-500.0,0.00036594,7]
[341451226,1730896243613,-500.0,0.00036594,7]
[341451228,1730896243622,-500.0,0.00036594,7]
[341451230,1730896243631,-500.0,0.00036594,7]
[341451232,1730896243640,-500.0,0.00036594,7]
[341451234,1730896243649,-500.0,0.00036594,7]
[341451236,1730896243658,-250.0,0.00036594,7]
[341451238,1730896243668,-643.84,0.00036594,7]
[341451240,1730896243677,-500.0,0.00036594,7]
[341451242,1730896243686,-301.18098578,0.00036594,7]
[341451244,1730896243696,-500.0,0.00036594,7]
[341451246,1730896243706,-533.65771869,0.00036594,7]
[341451248,1730896243715,-500.0,0.00036594,7]
[341451250,1730896243724,-500.0,0.00036594,7]
[341451251,1730896243733,-500.0,0.00036594,7]
[341451253,1730896243742,-500.0,0.00036594,7]
[341451256,1730896243751,-500.0,0.00036594,7]
[341451257,1730896243760,-500.0,0.00036594,7]
[341451259,1730896243769,-500.0,0.00036594,7]
[341451261,1730896243778,-500.0,0.00036594,7]
[341451263,1730896243787,-500.0,0.00036594,7]
[341451265,1730896243796,-500.0,0.00036594,7]
[341451267,1730896243805,-500.0,0.00036594,7]
[341451269,1730896243815,-500.0,0.00036594,7]
[341451271,1730896243824,-621.88851965,0.00036594,7]
[341451273,1730896243833,-500.0,0.00036594,7]
[341451275,1730896243842,-500.0,0.00036594,7]
[341451277,1730896243852,-530.6376551,0.00036594,7]
[341451279,1730896243861,-793.96,0.00036594,7]
[341451281,1730896243870,-527.47151052,0.00036594,7]
[341451282,1730896243879,-500.0,0.00036594,7]
[341451284,1730896243889,-518.38402291,0.00036594,7]
[341451286,1730896243898,-580.54064363,0.00036594,7]
[341451288,1730896243907,-500.0,0.00036594,7]
[341451289,1730896243918,-200.0,0.00036594,7]
[341451290,1730896243927,-500.0,0.00036594,7]
[341451291,1730896243936,-500.0,0.00036594,7]
[341451292,1730896243946,-500.0,0.00036594,7]
[341451293,1730896243955,-500.0,0.00036594,7]
[341451294,1730896243965,-500.0,0.00036594,7]
[341451295,1730896243974,-500.0,0.00036594,7]
[341451296,1730896243983,-549.53,0.00036594,7]
[341451297,1730896243992,-500.0,0.00036594,7]
[341451299,1730896244001,-500.0,0.00036594,7]
[341451300,1730896244010,-500.0,0.00036594,7]
[341451301,1730896244019,-500.0,0.00036594,7]
[341451302,1730896244029,-500.0,0.00036594,7]
[341451303,1730896244041,-798.73,0.00036594,7]
[341451304,1730896244051,-500.0,0.00036594,7]
[341451306,1730896244060,-500.0,0.00036594,7]
[341451308,1730896244069,-739.27,0.00036594,7]
[341451310,1730896244079,-500.0,0.00036594,7]
[341451312,1730896244087,-571.03582905,0.00036594,7]
[341451314,1730896244096,-500.0,0.00036594,7]
[341451316,1730896244106,-500.0,0.00036594,7]
[341451318,1730896244117,-586.37584174,0.00036594,7]
[341451320,1730896244127,-500.0,0.00036594,7]
[341451322,1730896244136,-500.0,0.00036594,7]
[341451324,1730896244147,-500.0,0.00036594,7]
[341451326,1730896244156,-500.0,0.00036594,7]
[341451328,1730896244165,-500.0,0.00036594,7]
[341451330,1730896244178,-500.0,0.00036594,7]
[341451332,1730896244187,-500.0,0.00036594,7]
[341451334,1730896244195,-632.65,0.00036594,7]
[341451336,1730896244206,-500.0,0.00036594,7]
[341451338,1730896244215,-500.0,0.00036594,7]
[341451340,1730896244224,-500.0,0.00036594,7]
[341451341,1730896244234,-500.0,0.00036594,7]
[341451343,1730896244243,-500.0,0.00036594,7]
[341451345,1730896244253,-500.0,0.00036594,7]
[341451347,1730896244262,-500.0,0.00036594,7]
[341451349,1730896244271,-500.0,0.00036594,7]
[341451351,1730896244281,-500.0,0.00036594,7]
[341451353,1730896244290,-500.0,0.00036594,7]
[341451355,1730896244300,-500.0,0.00036594,7]
[341451357,1730896244309,-1074.09,0.00036594,7]
[341451359,1730896244319,-500.0,0.00036594,7]
[341451361,1730896244329,-500.0,0.00036594,7]
[341451363,1730896244340,-500.0,0.00036594,7]
[341451365,1730896244350,-500.0,0.00036594,7]
[341451366,1730896244360,-500.0,0.00036594,7]
[341451367,1730896244369,-518.80224205,0.00036594,7]
[341451368,1730896244380,-518.86583203,0.00036594,7]
[341451369,1730896244391,-500.0,0.00036594,7]
[341451370,1730896244400,-500.0,0.00036594,7]
[341451371,1730896244410,-1395.16,0.00036594,7]
[341451372,1730896244422,-743.15,0.00036594,7]
[341451373,1730896244432,-500.0,0.00036594,7]
[341451374,1730896244441,-500.0,0.00036594,7]
[341451375,1730896244451,-500.0,0.00036594,7]
[341451376,1730896244461,-1178.21,0.00036594,7]
[341451377,1730896244471,-524.32628625,0.00036594,7]
[341451378,1730896244480,-500.0,0.00036594,7]
[341451379,1730896244491,-500.0,0.00036594,7]
[341451380,1730896244500,-500.0,0.00036594,7]
[341451381,1730896244510,-500.0,0.00036594,7]
[341451382,1730896244520,-1743.13,0.00036594,7]
[341451383,1730896244529,-500.0,0.00036594,7]
[341451384,1730896244538,-500.0,0.00036594,7]
[341451385,1730896244548,-500.0,0.00036594,7]
[341451386,1730896244557,-531.98142947,0.00036594,7]
[341451387,1730896244566,-500.0,0.00036594,7]
[341451388,1730896244575,-501.24741285,0.00036594,7]
[341451389,1730896244584,-235.79745474,0.00036594,7]
[341451390,1730896244593,-500.0,0.00036594,7]
[341451391,1730896244602,-499.80329433,0.00036594,7]
[341451392,1730896244611,-500.0,0.00036594,7]
[341451393,1730896244620,-374.89397944,0.00036594,7]
[341451394,1730896244629,-500.0,0.00036594,7]
[341451395,1730896244638,-1324.01,0.00036594,7]
[341451396,1730896244647,-500.0,0.00036594,7]
[341451397,1730896244656,-500.0,0.00036594,7]
[341451398,1730896244665,-1092.69,0.00036594,7]
[341451399,1730896244675,-346.69495771,0.00036594,7]
[341451400,1730896244685,-225.61820833,0.00036594,7]
[341451401,1730896244701,-274.38179167,0.00036594,7]
[341451402,1730896244710,-597.64511815,0.00036594,7]
[341451403,1730896244719,-861.82,0.00036594,7]
[341451404,1730896244728,-500.0,0.00036594,7]
[341451405,1730896244738,-500.0,0.00036594,7]
[341451406,1730896244747,-500.0,0.00036594,7]
[341451407,1730896244755,-306.52589449,0.00036594,7]
[341451408,1730896244765,-500.0,0.00036594,7]
[341451409,1730896244775,-1139.36,0.00036594,7]
[341451410,1730896244785,-500.0,0.00036594,7]
[341451411,1730896244794,-861.19,0.00036594,7]
[341451412,1730896244803,-500.0,0.00036594,7]
[341451413,1730896244812,-500.0,0.00036594,7]
[341451414,1730896244821,-500.0,0.00036594,7]
[341451415,1730896244830,-1134.46,0.00036594,7]
[341451416,1730896244839,-500.0,0.00036594,7]
[341451417,1730896244848,-500.0,0.00036594,7]
[341451418,1730896244857,-500.0,0.00036594,7]
[341451419,1730896244866,-500.0,0.00036594,7]
[341451420,1730896244875,-1157.78,0.00036594,7]
[341451421,1730896244885,-727.31,0.00036594,7]
[341451422,1730896244894,-806.11,0.00036594,7]
[341451423,1730896244903,-500.0,0.00036594,7]
[341451424,1730896244913,-1660.72,0.00036594,7]
[341451425,1730896244924,-500.0,0.00036594,7]
[341451426,1730896244933,-500.0,0.00036594,7]
[341451427,1730896244942,-500.0,0.00036594,7]
[341451428,1730896244952,-500.0,0.00036594,7]
[341451429,1730896244961,-695.4,0.00036594,7]
[341451430,1730896244971,-122.24937769,0.00036594,7]
[341451431,1730896244983,-377.75062231,0.00036594,7]
[341451432,1730896244992,-500.0,0.00036594,7]
[341451433,1730896245001,-500.0,0.00036594,7]
[341451434,1730896245011,-500.0,0.00036594,7]
[341451435,1730896245021,-1156.47,0.00036594,7]
[341451436,1730896245031,-500.0,0.00036594,7]
[341451437,1730896245043,-500.0,0.00036594,7]
[341451438,1730896245053,-500.0,0.00036594,7]
[341451439,1730896245063,-500.0,0.00036594,7]
[341451440,1730896245072,-500.0,0.00036594,7]
[341451441,1730896245083,-500.0,0.00036594,7]
[341451442,1730896245093,-500.0,0.00036594,7]
[341451443,1730896245102,-354.08359042,0.00036594,7]
[341451444,1730896245113,-500.0,0.00036594,7]
[341451445,1730896245123,-500.0,0.00036594,7]
[341451446,1730896245132,-2131.81,0.00036594,7]
[341451447,1730896245140,-500.0,0.00036594,7]
[341451448,1730896245150,-1253.11,0.00036594,7]
[341451449,1730896245159,-1410.32,0.00036594,7]
[341451450,1730896245168,-500.0,0.00036594,7]
[341451451,1730896245177,-500.0,0.00036594,7]
[341451452,1730896245187,-500.0,0.00036594,7]
[341451453,1730896245197,-533.33,0.00036594,7]
[341451454,1730896245207,-500.0,0.00036594,7]
[341451455,1730896245216,-733.49,0.00036594,7]
[341451456,1730896245226,-1215.42,0.00036594,7]
[341451457,1730896245235,-500.0,0.00036594,7]
[341451458,1730896245245,-606.6,0.00036594,7]
[341451459,1730896245255,-881.66,0.00036594,7]
[341451460,1730896245264,-519.08,0.00036594,7]
[341451461,1730896245274,-500.0,0.00036594,7]
[341451462,1730896245284,-438.68101724,0.00036594,7]
[341451463,1730896245307,-500.0,0.00036592,7]
[341451464,1730896245317,-65.82660537,0.00036594,7]
[341451465,1730896245326,-636.78,0.00036594,7]
[341451466,1730896245336,-500.0,0.00036594,7]
[341451467,1730896245345,-500.0,0.00036594,7]
[341451468,1730896245355,-1531.74339463,0.00036594,7]
[341451469,1730896245366,-874.26660537,0.00036594,7]
[341451470,1730896245376,-420.48067933,0.00036594,7]
[341451471,1730896245385,-500.0,0.00036594,7]
[341451472,1730896245395,-500.0,0.00036594,7]
[341451473,1730896245404,-500.0,0.00036594,7]
[341451474,1730896245413,-219.66847899,0.00036594,7]
[341451475,1730896245437,-488.13152101,0.00036594,7]
[341451476,1730896245446,-500.0,0.00036594,7]
[341451477,1730896245457,-500.0,0.00036594,7]
[341451478,1730896245470,-1166.75,0.00036594,7]
[341451479,1730896245479,-500.0,0.00036594,7]
[341451480,1730896245489,-500.0,0.00036594,7]
[341451481,1730896245499,-672.28,0.00036594,7]
[341451482,1730896245508,-500.0,0.00036594,7]
[341451483,1730896245518,-500.0,0.00036594,7]
[341451484,1730896245527,-500.0,0.00036594,7]
[341451485,1730896245536,-344.66248425,0.00036594,7]
[341451486,1730896245546,-564.12267107,0.00036594,7]
[341451487,1730896245555,-500.0,0.00036594,7]
[341451488,1730896245563,-500.0,0.00036594,7]
[341451489,1730896245574,-500.0,0.00036594,7]
[341451490,1730896245583,-790.16,0.00036594,7]
[341451491,1730896245593,-500.0,0.00036594,7]
[341451493,1730896245603,-500.0,0.00036594,7]
[341451494,1730896245612,-1868.33,0.00036594,7]
[341451495,1730896245622,-500.0,0.00036594,7]
[341451496,1730896245632,-765.16,0.00036594,7]
[341451497,1730896245641,-619.17,0.00036594,7]
[341451498,1730896245651,-542.94,0.00036594,7]
[341451499,1730896245660,-500.0,0.00036594,7]
[341451500,1730896245670,-500.0,0.00036594,7]
[341451501,1730896245679,-500.0,0.00036594,7]
[341451502,1730896245688,-500.0,0.00036594,7]
[341451503,1730896245698,-1083.98,0.00036594,7]
[341451504,1730896245708,-500.0,0.00036594,7]
[341451506,1730896245717,-500.0,0.00036594,7]
[341451508,1730896245726,-500.0,0.00036594,7]
[341451509,1730896245735,-500.0,0.00036594,7]
[341451510,1730896245745,-500.0,0.00036594,7]
[341451511,1730896245754,-500.0,0.00036594,7]
[341451512,1730896245764,-500.0,0.00036594,7]
[341451513,1730896245773,-500.0,0.00036594,7]
[341451514,1730896245782,-500.0,0.00036594,7]
[341451515,1730896245792,-500.0,0.00036594,7]
[341451517,1730896245801,-500.0,0.00036594,7]
[341451518,1730896245811,-500.0,0.00036594,7]
[341451519,1730896245820,-500.0,0.00036594,7]
[341451520,1730896245829,-579.79320558,0.00036594,7]
[341451521,1730896245839,-500.0,0.00036594,7]
[341451522,1730896245847,-500.0,0.00036594,7]
[341451523,1730896245858,-500.0,0.00036594,7]
[341451524,1730896245867,-2310.78,0.00036594,7]
[341451525,1730896245876,-500.0,0.00036594,7]
[341451526,1730896245886,-299.76613788,0.00036594,7]
[341451527,1730896245896,-744.83925954,0.00036594,7]
[341451528,1730896245983,-539.31074046,0.00036594,7]
[341451529,1730896245992,-185.1,0.00036594,7]
[341451530,1730896246001,-500.0,0.00036594,7]
[341451531,1730896246011,-500.0,0.00036594,7]
[341451532,1730896246020,-500.0,0.00036594,7]
[341451533,1730896246030,-500.0,0.00036594,7]
[341451534,1730896246043,-515.51247276,0.00036594,7]
[341451535,1730896246053,-500.0,0.00036594,7]
[341451536,1730896246062,-500.0,0.00036594,7]
[341451537,1730896246071,-552.79000798,0.00036594,7]
[341451538,1730896246082,-500.0,0.00036594,7]
[341451539,1730896246091,-301.24100278,0.00036594,7]
[341451540,1730896246103,-198.75899722,0.00036594,7]
[341451541,1730896246115,-500.0,0.00036594,7]
[341451542,1730896246126,-500.0,0.00036594,7]
[341451543,1730896246135,-500.0,0.00036594,7]
[341451544,1730896246145,-500.0,0.00036594,7]
[341451545,1730896246154,-565.72,0.00036594,7]
[341451546,1730896246165,-500.0,0.00036594,7]
[341451547,1730896246176,-500.0,0.00036594,7]
[341451548,1730896246186,-500.0,0.00036594,7]
[341451549,1730896246197,-500.0,0.00036594,7]
[341451550,1730896246207,-500.0,0.00036594,7]
[341451551,1730896246216,-234.35804157,0.00036594,7]
[341451552,1730896246240,-265.64195843,0.00036594,7]
[341451553,1730896246249,-500.0,0.00036594,7]
[341451554,1730896246259,-463.90524232,0.00036594,7]
[341451555,1730896246294,-36.09475768,0.00036594,7]
[341451556,1730896246303,-500.0,0.00036594,7]
[341451557,1730896246314,-164.72524197,0.00036594,7]
[341451558,1730896246327,-335.27475803,0.00036594,7]
[341451559,1730896246337,-500.0,0.00036594,7]
[341451560,1730896246346,-500.0,0.00036594,7]
[341451561,1730896246356,-500.0,0.00036594,7]
[341451562,1730896246366,-500.0,0.00036594,7]
[341451563,1730896246376,-1000.0,0.00036594,10]
[341451564,1730896246386,-932.62,0.00036594,7]
[341451565,1730896246396,-500.0,0.00036594,7]
[341451566,1730896246407,-500.0,0.00036594,7]
[341451567,1730896246417,-500.0,0.00036594,7]
[341451568,1730896246431,-500.0,0.00036594,7]
[341451569,1730896246440,-500.0,0.00036594,7]
[341451570,1730896246451,-500.0,0.00036594,7]
[341451571,1730896246460,-500.0,0.00036594,7]
[341451572,1730896246470,-500.0,0.00036594,7]
[341451573,1730896246480,-1655.2,0.00036594,7]
[341451574,1730896246490,-500.0,0.00036594,7]
[341451575,1730896246501,-500.0,0.00036594,7]
[341451576,1730896246511,-286.08784197,0.00036594,7]
[341451622,1730896247364,-213.91215803,0.00036594,7]
[341451623,1730896247373,-500.0,0.00036594,7]
[341451624,1730896247383,-500.0,0.00036594,7]
[341451625,1730896247392,-500.0,0.00036594,7]
[341451626,1730896247402,-500.0,0.00036594,7]
[341451627,1730896247412,-500.0,0.00036594,7]
[341451628,1730896247424,-500.0,0.00036594,7]
[341451629,1730896247434,-500.0,0.00036594,7]
[341451630,1730896247443,-500.0,0.00036594,7]
[341451631,1730896247453,-500.0,0.00036594,7]
[341451632,1730896247462,-500.0,0.00036594,7]
[341451633,1730896247472,-500.0,0.00036594,7]
[341451634,1730896247481,-500.0,0.00036594,7]
[341451635,1730896247491,-500.0,0.00036594,7]
[341451636,1730896247500,-500.0,0.00036594,7]
[341451637,1730896247510,-964.38,0.00036594,7]
[341451638,1730896247519,-605.18151963,0.00036594,7]
[341451639,1730896247528,-500.0,0.00036594,7]
[341451640,1730896247538,-500.0,0.00036594,7]
[341451641,1730896247547,-500.0,0.00036594,7]
[341451642,1730896247557,-500.0,0.00036594,7]
[341451643,1730896247566,-4148.48053495,0.00036594,7]
[341451644,1730896256989,150.0,0.00018123,2]
[341451647,1730896314116,162.67,0.00015342,2]
[341451648,1730896341224,205.0,0.000344,120]
[341451649,1730896343940,176.661,0.0003,2]
[341451650,1730896359739,150.0,0.00018123,2]
[341451651,1730896382854,300.0,0.00019725,2]
[341451652,1730896456538,151.0,0.0003,120]
[341451653,1730896501358,300.0,0.00019725,2]
[341451654,1730896506694,4.122,0.0003,120]
[341451655,1730896801518,300.0,0.00019725,2]
[341451657,1730896921370,168.0,0.00019725,2]
[341451660,1730897126102,863.23623562,0.0002,2]
[341451662,1730897236148,-190.13,0.00021918,2]
[341451663,1730897236174,-173.62787862,0.00024408,2]
[341451664,1730897236199,-200.0,0.00024658,2]
[341451665,1730897236224,-200.0,0.00024658,2]
[341451666,1730897236248,-200.0,0.00024658,2]
[341451667,1730897236271,-500.0,0.00024932,2]
[341451668,1730897236294,-863.23623562,0.00025,2]
[341451669,1730897236317,-5113.73123611,0.00025,2]
[341451670,1730897241096,-291.02974469,0.00025,2]
[341451671,1730897249093,-622.81031438,0.00025,2]
[341451672,1730897249120,-2555.41027629,0.00025,2]
[341451673,1730897281143,-31285.56842853,0.00025,2]
[341451674,1730897292122,-664.25663409,0.000268,2]
[341451675,1730897292149,-1821.0,0.000269,2]
[341451676,1730897292174,-897.0,0.000269,2]
[341451677,1730897293124,150.0,0.00018123,2]
[341451678,1730897346091,-160.0,0.000284,120]
[341451679,1730897346112,-150.057,0.0003,2]
[341451680,1730897346134,-195.878,0.0003,120]
[341451681,1730897346155,-500.0,0.00031,30]
[341451682,1730897346176,-500.0,0.00031,30]
[341451683,1730897346196,-500.0,0.00031,30]
[341451684,1730897352165,-969.12,0.00031804,2]
[341451685,1730897352186,-250.0,0.00032,120]
[341451686,1730897352206,-171.96,0.00032188,2]
[341451687,1730897352227,-3339.17,0.00032495,2]
[341451688,1730897352249,-150.99,0.00032495,2]
[341451689,1730897352269,-559.1,0.00032495,2]
[341451690,1730897352289,-200.0,0.00033,120]
[341451691,1730897352310,-3339.17,0.00033017,2]
[341451692,1730897352331,-985.29,0.00033092,2]
[341451693,1730897352352,-800.0,0.00033128,2]
[341451694,1730897352372,-500.0,0.00033257,2]
[341451695,1730897352396,-200.0,0.00033335,7]
[341451696,1730897352417,-20379.94,0.000335,2]
[341451697,1730897352438,-3339.17,0.00033539,2]
[341451698,1730897352459,-534.85,0.00033571,2]
[341451699,1730897352481,-1228.68,0.00033606,2]
[341451700,1730897352502,-434.51,0.00033651,120]
[341451701,1730897352522,-2529.84,0.00033665,120]
[341451702,1730897352543,-250.38,0.00033672,2]
[341451703,1730897352565,-250.0,0.00033677,120]
[341451704,1730897352586,-168.0,0.00033682,2]
[341451705,1730897352607,-250.0,0.00033859,2]
[341451706,1730897352626,-488.38,0.00033897,2]
[341451707,1730897352646,-250.0,0.00033912,2]
[341451708,1730897352665,-708.99,0.00033931,2]
[341451709,1730897352684,-752.38,0.00034002,2]
[341451710,1730897352704,-3339.17,0.00034061,2]
[341451711,1730897352725,-969.12,0.00034068,2]
[341451712,1730897352746,-274.74,0.00034135,120]
[341451713,1730897352766,-160.15,0.00034225,2]
[341451714,1730897352786,-250.0,0.000344,120]
[341451715,1730897400175,8348.8709673,0.000342,2]
[341451716,1730897400195,12830.05627137,0.000342,2]
[341451717,1730897402046,300.0,0.00019725,2]
[341451718,1730897402783,420.0,0.00021484,2]
[341451719,1730897403525,587.0,0.00023401,2]
[341451720,1730897427076,191.89,0.0003419,10]
[341451735,1730897431962,-36428.4674422,0.000342,2]
[341451766,1730897438436,-183.38550021,0.00034199,7]
[341451767,1730897438446,-1554.08079274,0.000342,2]
[341451768,1730897438462,-1004.89236364,0.000342,2]
[341451769,1730897438473,-33215.26910884,0.000342,2]
[341451770,1730897438495,-3936.61582778,0.000342,2]
[341451771,1730897438587,-7660.89791761,0.000342,2]
[341451772,1730897438600,-37616.033428,0.000342,2]
[341451773,1730897438612,-2716.66522628,0.000342,2]
[341451774,1730897438624,-3723.85,0.000342,2]
[341451781,1730897439974,-52076.47542023,0.000342,2]
[341451782,1730897439983,-3339.17,0.00034584,2]
[341451783,1730897439993,-172.24,0.00034722,120]
[341451784,1730897440002,-200.0,0.00034799,2]
[341451785,1730897440012,-200.0,0.000348,120]
[341451786,1730897440022,-4213.30217209,0.000349,15]
[341451787,1730897440031,-176.49,0.00034949,120]
[341451788,1730897440040,-200.0,0.00034986,2]
[341451789,1730897440050,-61395.0,0.00035,2]
[341451790,1730897440059,-863.23623562,0.00035,2]
[341451791,1730897440071,-3339.17,0.00035106,2]
[341451792,1730897440081,-196.3,0.00035121,2]
[341451793,1730897440091,-4213.302172,0.00035233,15]
[341451794,1730897440101,-261.0,0.00035273,120]
[341451795,1730897440110,-528.67,0.00035452,42]
[341451796,1730897440120,-4213.302172,0.00035567,15]
[341451797,1730897440130,-500.0,0.00035616,7]
[341451798,1730897440140,-500.0,0.00035616,7]
[341451799,1730897440149,-3339.17,0.00035628,2]
[341451800,1730897440162,-500.0,0.0003589,7]
[341451801,1730897440172,-500.0,0.0003589,7]
[341451802,1730897440181,-4213.302172,0.000359,15]
[341451803,1730897440191,-500.0,0.00036,7]
[341451804,1730897440201,-500.0,0.00036,7]
[341451805,1730897440212,-500.0,0.00036,7]
[341451806,1730897440222,-500.0,0.00036,7]
[341451807,1730897440232,-500.0,0.00036,7]
[341451808,1730897440241,-500.0,0.00036,7]
[341451809,1730897440251,-500.0,0.00036,7]
[341451810,1730897440261,-500.0,0.00036,7]
[341451811,1730897440270,-500.0,0.00036,7]
[341451812,1730897440280,-500.0,0.00036,7]
[341451813,1730897440290,-500.0,0.00036,7]
[341451814,1730897440299,-500.0,0.00036,7]
[341451815,1730897440309,-629.19,0.00036,7]
[341451817,1730897440320,-3339.17,0.0003615,2]
[341451819,1730897440329,-500.0,0.00036164,7]
[341451821,1730897440339,-500.0,0.00036164,7]
[341451823,1730897440348,-464.27937,0.0003623,2]
[341451825,1730897440358,-3421.89028606,0.00036233,15]
[341451828,1730897440397,-500.0,0.00035616,7]
[341451829,1730897440407,-690.71152535,0.00036233,15]
[341451830,1730897440430,-100.70036059,0.00036233,15]
[341451831,1730897440440,-969.12,0.00036332,2]
[341451832,1730897440449,-205.0,0.000364,120]
[341451833,1730897440460,-180.0,0.00036401,2]
[341451834,1730897440469,-500.0,0.00036438,7]
[341451835,1730897440479,-500.0,0.00036438,7]
[341451836,1730897440489,-731.4833836,0.00036491,2]
[341451837,1730897440500,-317.71687078,0.00036491,2]
[341451838,1730897440511,-846.2824,0.00036492,2]
[341451839,1730897440571,-6969.5781,0.00036493,2]
[341451840,1730897440581,-4213.302172,0.00036567,15]
[341451841,1730897440591,-464.27938,0.0003658,2]
[341451842,1730897440601,-555.94,0.00036589,7]
[341451843,1730897440610,-788.2020066,0.00036589,7]
[341451844,1730897440622,-1196.3119642,0.00036589,7]
[341451845,1730897440637,-530.94999996,0.00036589,7]
[341451853,1730897443881,-500.0,0.0003589,7]
[341451854,1730897443892,-500.0,0.00036164,7]
[341451855,1730897443901,-500.0,0.00036438,7]